bitfinex-derivatives/quotes_ETHF0:USTF0_20250530
["timestamp","ask_amount","ask_price","bid_price","bid_amount"]
[1748644291282,5.43819,2553.0,2552.8,1.2876]
[1748644291486,0.7832,2552.9,2552.8,1.2876]
[1748644294189,0.78323,2552.8,2552.7,3.2078]
[1748644294385,0.78326,2552.7,2552.6,0.00587418]
[1748644294586,2.12616,2552.7,2552.6,0.00587418]
[1748644295786,2.12616,2552.7,2552.3,1.2968]
[1748644295787,13.08607,2552.7,2552.1,3.2078]
[1748644295985,0.78342,2552.2,2552.1,3.2078]
[1748644298491,0.78342,2552.3,2552.1,3.2078]
[1748644298695,0.00587418,2552.4,2552.3,0.78339]
[1748644299292,0.00587418,2552.4,2552.3,2.14429]
[1748644299494,0.00587418,2552.4,2552.3,7.14429]
[1748644299799,0.78324,2552.8,2552.6,0.78329]
[1748644299994,0.78324,2552.8,2552.7,1.3609]
[1748644300994,3.21367418,2553.0,2552.7,1.3609]
[1748644301197,0.78323,2552.8,2552.7,1.3609]
[1748644301898,0.78329,2552.6,2552.5,3.2078]
[1748644302800,0.79319,2552.6,2552.5,3.2078]
[1748644304402,0.78335,2552.4,2552.3,1.3476]
[1748644307402,0.78339,2552.3,2552.2,1.2958]
[1748644308799,0.78345,2552.1,2552.0,4.523]
[1748644309203,0.78348,2552.0,2551.9,0.00587418]
[1748644311499,3.2078,2552.2,2551.9,0.00587418]
[1748644311701,0.78348,2552.0,2551.9,0.78938418]
[1748644312001,0.78348,2552.0,2551.9,0.00587418]
[1748644312197,0.78348,2552.0,2551.9,1.38607418]
[1748644313210,0.78348,2552.0,2551.9,0.00587418]
[1748644315402,5.0,2552.0,2551.3,4.5142]
[1748644315606,0.78369,2551.3,2551.2,1.2763]
[1748644317002,0.78375,2551.1,2551.0,1.31227418]
[1748644317202,0.78375,2551.1,2551.0,0.00587418]
[1748644318005,0.78375,2551.1,2551.0,1.27087418]
[1748644318204,4.51077418,2551.5,2551.1,0.78374]
[1748644318405,0.78369,2551.3,2551.2,1.265]
[1748644320511,0.78375,2551.1,2551.0,0.00587418]
[1748644321116,0.00587418,2551.5,2551.0,3.21367418]
[1748644321306,0.00587418,2551.5,2551.1,1.36]
[1748644321504,0.78372,2551.2,2551.1,1.36]
[1748644321700,0.78372,2551.2,2551.1,2.14375]
[1748644322009,0.78372,2551.2,2551.1,1.36]
[1748644322305,0.00587418,2551.5,2551.1,1.36]
[1748644322512,0.78372,2551.2,2551.1,2.14375]
[1748644323215,0.78372,2551.2,2551.1,1.36]
[1748644323614,0.7837,2551.3,2551.2,0.78371]
[1748644324008,0.78375,2551.1,2551.0,3.21367418]
[1748644325013,0.78375,2551.1,2551.0,4.54837418]
[1748644325209,1.95924,2551.3,2551.0,4.54837418]
[1748644325409,0.78375,2551.1,2551.0,4.54837418]
[1748644325708,0.78375,2551.1,2551.0,5.33215418]
[1748644325912,0.00587418,2551.5,2551.0,9.54837418]
[1748644326213,0.78953418,2551.5,2551.3,0.78368]
[1748644326410,0.78953418,2551.5,2551.4,2.6126]
[1748644327408,0.78372,2551.2,2551.1,1.25]
[1748644327614,0.78375,2551.1,2551.0,0.00587418]
[1748644327911,2.11405,2551.1,2551.0,0.00587418]
[1748644328708,2.11405,2551.1,2551.0,4.18e-06]
[1748644328909,3.39675,2551.1,2551.0,4.18e-06]
[1748644331318,6.60455,2551.1,2551.0,4.18e-06]
[1748644332016,11.60455,2551.1,2551.0,4.18e-06]
[1748644332319,1.96009,2550.2,2549.2,7.8678]
[1748644332516,0.78419,2549.7,2549.5,3.2078]
[1748644332714,0.78418,2549.8,2549.6,1.3682]
[1748644332914,0.78418,2549.7,2549.6,1.3682]
[1748644333115,0.98028,2549.7,2549.6,1.3682]
[1748644334022,0.1961,2549.7,2549.6,1.3682]
[1748644334317,0.1961,2549.7,2549.6,2.15242]
[1748644334521,0.1961,2549.7,2549.6,7.15242]
[1748644335116,0.1961,2549.7,2549.6,10.36022]
[1748644335320,0.1961,2549.7,2549.6,4.576]
[1748644335921,0.98028,2549.7,2549.6,4.576]
[1748644336121,0.98028,2549.7,2549.6,5.36021]
[1748644336321,0.1961,2549.7,2549.6,5.36021]
[1748644336522,0.1961,2549.7,2549.6,4.576]
[1748644336822,0.1961,2549.7,2549.6,5.36021]
[1748644337526,0.1961,2549.7,2549.6,10.36021]
[1748644339012,1.95956,2550.9,2549.6,9.576]
[1748644339224,9.254,2551.0,2550.3,3.2078]
[1748644339419,0.78392,2550.6,2550.5,0.78394]
[1748644339617,0.78391,2550.7,2550.6,0.78389]
[1748644339918,0.78391,2550.6,2550.5,2.04972]
[1748644340124,0.78391,2550.6,2550.5,1.2658]
[1748644340516,0.78391,2550.6,2549.8,3.2078]
[1748644340517,5.0,2550.6,2549.8,3.2078]
[1748644340722,0.78412,2549.9,2549.8,5.31194]
[1748644341021,0.78412,2549.9,2549.8,4.5278]
[1748644341422,0.79432,2550.0,2549.9,0.78411]
[1748644341724,0.79432,2550.0,2549.9,1.32]
[1748644342320,0.79432,2550.0,2549.9,2.10412]
[1748644342722,0.79429,2550.0,2549.9,1.32]
[1748644342923,0.78415,2549.8,2549.7,1.2958]
[1748644343125,0.78421,2549.6,2549.5,4.5034]
[1748644344023,0.78421,2549.6,2549.5,6.53935]
[1748644344219,0.78421,2549.7,2549.5,5.7551]
[1748644344524,3.21367418,2550.9,2550.6,0.7839]
[1748644344730,3.21367418,2550.9,2550.5,0.78393]
[1748644344917,0.78388,2550.7,2550.6,2.03561]
[1748644345120,0.78388,2550.7,2550.6,1.2517]
[1748644345532,0.78394,2550.5,2550.4,3.2078]
[1748644345729,0.78394,2550.5,2550.4,4.4595]
[1748644346029,0.78393,2550.6,2550.4,5.24346]
[1748644346327,3.21367418,2550.9,2550.4,4.4595]
[1748644346523,0.78394,2550.5,2550.4,3.2078]
[1748644346724,0.78393,2550.6,2550.4,3.99177]
[1748644346924,0.78393,2550.6,2550.4,3.2078]
[1748644347120,0.78393,2550.6,2550.4,3.99175]
[1748644347424,0.78394,2550.5,2550.4,3.2078]
[1748644347828,0.78392,2550.6,2550.4,3.99175]
[1748644348034,0.78392,2550.6,2550.4,4.5797]
[1748644348220,0.7839,2550.7,2550.4,4.5797]
[1748644348530,0.78392,2550.6,2550.4,4.5797]
[1748644348828,0.78392,2550.6,2550.4,5.36366]
[1748644349036,4.53147418,2550.9,2550.4,5.36366]
[1748644349037,6.49105418,2550.9,2550.4,5.36366]
[1748644349231,0.78394,2550.5,2550.4,4.5797]
[1748644349535,6.49105418,2550.9,2550.1,4.662]
[1748644349536,1.9598,2550.6,2550.1,3.2078]
[1748644349738,0.78403,2550.2,2550.1,4.5476]
[1748644350234,0.78403,2550.2,2550.1,3.2078]
[1748644351851,3.21367418,2550.9,2550.1,10.16795]
[1748644352140,0.78389,2550.7,2550.5,0.78392]
[1748644352541,0.78389,2550.7,2550.6,1.3462]
[1748644354141,0.78391,2550.6,2550.5,1.3679]
[1748644354846,0.78394,2550.5,2550.4,3.2078]
[1748644355145,3.33355,2550.5,2550.0,0.78408]
[1748644355444,0.78404,2550.2,2550.1,3.2078]
[1748644355655,5.16791,2550.2,2549.8,2.33821582]
[1748644355848,0.78425,2549.5,2549.4,4.18e-06]
[1748644356049,8.64905,2549.5,2549.4,4.18e-06]
[1748644356355,13.64905,2549.5,2549.4,4.18e-06]
[1748644357654,12.8648,2549.5,2548.0,3.2078]
[1748644357853,0.78468,2548.1,2548.0,3.2078]
[1748644358246,3.2078,2548.1,2547.6,1.2864]
[1748644358445,3.2078,2549.4,2547.9,3.2078]
[1748644358652,1.3456,2549.4,2548.7,3.2078]
[1748644358859,0.78436,2549.2,2549.0,3.2078]
[1748644359063,0.78437,2549.1,2549.0,3.2078]
[1748644359261,4.658,2549.1,2548.7,3.2078]
[1748644359555,4.658,2549.1,2548.4,1.29228685]
[1748644359752,0.78455,2548.5,2548.4,0.00588685]
[1748644359956,1.96115,2548.9,2548.4,0.00588685]
[1748644359957,0.78454,2548.6,2548.4,0.00588685]
[1748644360151,3.2078,2548.9,2548.4,0.00588685]
[1748644360353,1.96101,2549.0,2548.4,0.00588685]
[1748644360657,0.78455,2548.5,2548.4,0.00588685]
[1748644360858,0.78454,2548.6,2548.4,0.00588685]
[1748644361055,0.78454,2548.6,2548.4,1.28598685]
[1748644361251,0.78419,2549.7,2549.2,0.78434]
[1748644361451,3.2078,2550.0,2549.2,3.99214]
[1748644361656,0.78419,2549.7,2549.2,3.99214]
[1748644362258,1.2918,2549.9,2549.2,3.99214]
[1748644362563,2.07594,2549.9,2549.2,3.99214]
[1748644362765,0.78416,2549.8,2549.2,3.99214]
[1748644363160,2.07594,2549.9,2549.2,3.99214]
[1748644363462,0.78414,2549.9,2549.2,3.99214]
[1748644363665,4.5429,2550.3,2549.3,1.96073]
[1748644363666,1.2918,2550.2,2549.3,1.96073]
[1748644363851,4.5935,2550.7,2550.1,3.2078]
[1748644364057,0.78394,2550.6,2550.1,3.2078]
[1748644364259,0.78389,2550.7,2550.4,0.78395]
[1748644364557,0.07840984,2550.7,2550.5,2.13653]
[1748644364865,0.07841292,2550.6,2550.5,1.3526]
[1748644365463,0.07841292,2550.6,2550.5,2.13654]
[1748644365763,0.86232292,2550.6,2550.5,1.3526]
[1748644366667,0.00588685,2550.8,2550.5,1.3526]
[1748644366668,0.00588685,2550.8,2550.5,6.3526]
[1748644366962,4.5811,2552.1,2550.9,1.95947]
[1748644367163,0.78361,2551.6,2551.3,3.99149]
[1748644367356,0.07838219,2551.6,2551.4,1.3178]
[1748644367559,0.86199219,2551.6,2551.4,1.3178]
[1748644368260,0.86198219,2551.6,2551.4,1.3178]
[1748644368659,0.07838219,2551.6,2551.4,1.3178]
[1748644368858,0.07838219,2551.6,2551.4,2.10145]
[1748644369267,0.86198219,2551.6,2551.4,1.3178]
[1748644369668,0.78366,2551.4,2551.3,3.2078]
[1748644369870,0.86204833,2551.4,2551.3,3.2078]
[1748644370668,0.78372,2551.2,2551.1,1.3136]
[1748644373259,4.905,2551.6,2551.1,2.09734]
[1748644373466,0.7836,2551.7,2551.3,3.2078]
[1748644373769,0.78358,2551.7,2551.5,0.78362]
[1748644374164,0.78944685,2551.8,2551.6,1.3471]
[1748644374359,0.00588685,2551.8,2551.6,4.5549]
[1748644374559,0.78942685,2551.8,2551.7,1.3471]
[1748644376066,0.00588685,2551.8,2551.7,6.3471]
[1748644376265,0.78942685,2551.8,2551.7,1.3471]
[1748644377272,3.2078,2552.4,2551.7,1.3471]
[1748644377273,3.2078,2552.4,2551.9,1.95878]
[1748644377487,3.2078,2553.4,2552.3,3.2078]
[1748644377771,3.2078,2553.4,2552.8,3.99102]
[1748644377977,0.78315,2553.1,2552.9,1.373]
[1748644378174,1.2968,2553.6,2553.0,0.78316]
[1748644378369,0.78311,2553.2,2553.1,4.5808]
[1748644380672,0.78314,2553.1,2553.0,0.00587521]
[1748644380984,5.34494,2553.1,2553.0,0.00587521]
[1748644381273,7.13714,2553.1,2553.0,0.00587521]
[1748644381775,6.354,2553.1,2552.6,3.2078]
[1748644381985,0.78339,2552.3,2552.2,3.2078]
[1748644383275,0.78345,2552.1,2552.0,0.00587521]
[1748644386879,0.78372,2551.2,2551.1,3.2078]
[1748644387073,5.68472,2551.2,2551.1,2.41509]
[1748644387273,13.1088,2551.2,2550.3,5.8641]
[1748644387479,3.2078,2550.6,2549.8,1.3735]
[1748644387681,3.91953,2550.7,2549.8,1.3735]
[1748644387682,0.78412,2549.9,2549.8,1.3735]
[1748644387876,0.00587521,2550.1,2549.8,1.3735]
[1748644388183,0.78412,2549.9,2549.8,1.3735]
[1748644388985,0.78418,2549.7,2549.6,0.00587521]
[1748644389185,0.78418,2549.7,2549.6,3.21367521]
[1748644390187,3.99198,2549.7,2549.6,0.00587521]
[1748644391583,8.94798,2549.7,2549.6,0.00587521]
[1748644391886,3.99198,2549.7,2549.6,0.00587521]
[1748644392283,4.96187521,2550.1,2549.6,0.79007521]
[1748644392484,0.78414,2549.9,2549.7,4.5323]
[1748644392786,0.78996521,2550.1,2549.7,4.5323]
[1748644392986,0.00587521,2550.1,2550.0,3.99189]
[1748644393179,0.00587521,2550.1,2550.0,8.99189]
[1748644393882,0.00587521,2550.1,2550.0,10.31639]
[1748644395186,3.2078,2551.6,2550.0,14.4893]
[1748644395382,1.95886,2551.8,2551.4,3.2078]
[1748644395679,0.7836,2551.6,2551.5,1.3617]
[1748644395881,5.16637,2552.2,2551.5,1.3617]
[1748644396084,0.78354,2551.8,2551.7,3.2078]
[1748644396283,0.78357,2551.7,2551.6,0.00587521]
[1748644398090,8.99137,2551.7,2551.6,5.21e-06]
[1748644398390,10.31857,2551.7,2551.6,5.21e-06]
[1748644398587,0.78391,2550.6,2550.5,3.2078]
[1748644398782,3.2078,2551.1,2550.5,3.2078]
[1748644398979,0.78386,2550.8,2550.5,3.2078]
[1748644399181,0.78388,2550.7,2550.6,1.3076]
[1748644399383,0.78391,2550.6,2550.5,3.2078]
[1748644401983,0.78388,2550.7,2550.5,3.2078]
[1748644402189,0.78388,2550.7,2550.6,1.2933]
[1748644405284,0.78397,2550.4,2550.3,0.00587521]
[1748644405989,0.97997,2550.4,2550.3,1.27827521]
[1748644406493,0.196,2550.4,2550.3,7.06227521]
[1748644407089,0.00587521,2550.8,2550.7,0.78388]
[1748644407594,0.78972521,2550.8,2550.7,0.78388]
[1748644407786,0.78972521,2550.8,2550.7,1.3226]
[1748644408093,0.00587521,2550.8,2550.7,2.10648]
[1748644408292,0.78972521,2550.8,2550.7,1.3226]
[1748644408895,0.78972521,2550.8,2550.7,2.10648]
[1748644409092,0.00587521,2550.8,2550.7,7.10648]
[1748644409289,0.78374,2551.2,2551.1,0.78374]
[1748644409484,0.78367,2551.4,2551.3,0.78367]
[1748644409689,1.95886,2551.8,2551.5,0.78363]
[1748644409889,10.12337,2552.2,2551.6,4.5304]
[1748644410103,0.78357,2551.7,2551.6,4.5304]
[1748644410898,0.00587521,2551.9,2551.6,6.3226]
[1748644411096,0.78354,2551.8,2551.6,3.2078]
[1748644411297,0.78363,2551.5,2551.4,1.37927521]
[1748644411500,0.78363,2551.5,2551.4,0.00587521]
[1748644413707,2.11193,2551.5,2551.4,0.00587521]
[1748644415805,7.11193,2551.5,2551.4,5.21e-06]
[1748644417706,10.90893,2551.5,2551.4,5.21e-06]
[1748644418209,0.78397,2550.4,2550.3,3.2078]
[1748644418413,0.78406,2550.1,2550.0,3.2078]
[1748644418615,1.3332,2550.3,2549.6,4.4781]
[1748644418815,0.78406,2550.1,2549.8,0.78413]
[1748644419016,0.78409,2550.0,2549.9,1.2703]
[1748644419615,0.78409,2550.0,2549.9,6.2703]
[1748644419813,0.00587521,2550.2,2549.9,9.4781]
[1748644420019,0.78409,2550.0,2549.9,4.4781]
[1748644420512,0.78409,2550.0,2549.9,9.4781]
[1748644420719,0.78409,2550.0,2549.9,4.4781]
[1748644421519,0.78409,2550.0,2549.9,1.2703]
[1748644421719,0.78409,2550.0,2549.9,4.4781]
[1748644425020,0.78409,2550.0,2549.7,0.00587521]
[1748644425021,0.78415,2549.8,2549.7,0.00587521]
[1748644425224,5.59615,2549.8,2549.7,5.21e-06]
[1748644426324,7.03385,2549.8,2549.7,5.21e-06]
[1748644427625,12.03385,2549.8,2549.7,5.21e-06]
[1748644428017,13.43525,2549.8,2549.7,5.21e-06]
[1748644428916,17.23225,2549.8,2549.7,5.21e-06]
[1748644429625,17.23225,2549.8,2548.7,5.9716]
[1748644429626,0.78455,2548.5,2548.4,3.2078]
[1748644429819,0.78461,2548.3,2548.2,1.4157]
[1748644430217,0.78465,2548.2,2547.9,4.6126]
[1748644430418,0.78468,2548.1,2548.0,1.4157]
[1748644430712,0.78447,2548.8,2548.2,1.96162]
[1748644430918,5.16836,2549.6,2548.5,3.2078]
[1748644431215,3.2078,2549.9,2549.1,3.2078]
[1748644431415,6.77329,2550.0,2549.2,2.838]
[1748644431416,4.813,2550.0,2549.2,2.838]
[1748644431615,0.78421,2549.6,2549.5,3.2078]
[1748644432017,0.78428,2549.4,2549.3,0.00588685]
[1748644432220,28.33908,2549.4,2549.3,6.85e-06]
[1748644432524,33.33908,2549.4,2549.3,6.85e-06]
[1748644433028,34.67098,2549.4,2549.3,6.85e-06]
[1748644436527,38.46798,2549.4,2549.3,6.85e-06]
[1748644437021,9.12098,2549.4,2549.3,6.85e-06]
[1748644437226,8.80608,2549.4,2549.3,6.85e-06]
[1748644437829,15.16198,2549.4,2549.3,6.85e-06]
[1748644439224,18.1747,2549.4,2548.0,1.4223]
[1748644439425,0.78474,2547.9,2547.8,1.43]
[1748644439624,0.78474,2547.9,2547.8,6.43]
[1748644440128,0.78474,2547.9,2547.8,1.43]
[1748644440331,0.78474,2547.9,2547.8,6.43]
[1748644440832,0.78474,2547.9,2547.8,1.43]
[1748644443933,0.7848,2547.7,2547.6,0.00588685]
[1748644444227,39.557,2547.7,2546.5,3.2078]
[1748644444431,1.96285,2546.7,2546.0,3.60348004]
[1748644444636,0.78517,2546.5,2546.4,3.2078]
[1748644444827,0.78517,2546.5,2546.0,1.25954463]
[1748644444828,2.1593,2546.5,2546.1,3.2078]
[1748644445030,0.1963,2546.5,2546.1,3.2078]
[1748644445436,0.78526,2546.2,2546.1,3.2078]
[1748644446030,2.15926,2546.5,2546.1,3.2078]
[1748644446031,0.1963,2546.5,2546.1,3.2078]
[1748644446333,0.1963,2546.5,2546.4,3.993]
[1748644446635,0.98147,2546.5,2546.4,3.2078]
[1748644446835,0.1963,2546.5,2546.4,3.2078]
[1748644447037,0.1963,2546.5,2546.4,5.9798]
[1748644447336,0.78526,2546.2,2546.1,3.2078]
[1748644447536,0.78526,2546.2,2546.1,4.5667]
[1748644447937,0.78525,2546.3,2546.1,4.5667]
[1748644448138,0.78525,2546.3,2546.2,1.3589]
[1748644448341,0.1963,2546.5,2546.2,1.3589]
[1748644448528,0.1963,2546.5,2546.2,6.3589]
[1748644448834,0.98148,2546.5,2546.2,2.14414]
[1748644449034,0.7852,2546.4,2546.3,1.3589]
[1748644449434,0.7852,2546.4,2546.3,6.3589]
[1748644450341,0.1963,2546.5,2546.4,0.7852]
[1748644450544,1.96242,2547.2,2546.4,4.6123]
[1748644450732,0.78501,2547.0,2546.9,3.2078]
[1748644450933,3.2078,2547.4,2546.5,0.78516]
[1748644451232,0.78517,2546.5,2546.4,0.78518]
[1748644451431,0.78506,2546.9,2546.8,0.78505]
[1748644451831,0.00588685,2547.1,2547.0,0.78501]
[1748644452038,0.00588685,2547.1,2547.0,5.78501]
[1748644452635,0.78498,2547.1,2547.0,8.2078]
[1748644453234,0.78498,2547.1,2547.0,3.2078]
[1748644454942,0.78498,2547.1,2547.0,3.99281]
[1748644455138,0.1962,2547.2,2547.1,0.78498]
[1748644455543,0.00588685,2547.3,2547.2,0.78495]
[1748644455842,0.78493,2547.3,2547.2,0.78494]
[1748644456141,0.78493,2547.3,2547.1,1.377]
[1748644456142,0.78489,2547.5,2547.4,0.78487]
[1748644456540,0.78487,2547.5,2547.4,0.78486]
[1748644457341,1.96133,2548.6,2547.4,5.0]
[1748644457539,0.78461,2548.3,2548.2,3.2078]
[1748644458136,5.0,2548.3,2547.5,0.78485]
[1748644458340,5.0,2548.3,2547.4,3.2078]
[1748644458341,0.78486,2547.5,2547.4,3.2078]
[1748644458536,0.78492,2547.3,2547.2,4.84188685]
[1748644459038,1.96187,2547.9,2547.2,4.84188685]
[1748644459240,0.78487,2547.5,2547.4,0.78488]
[1748644459436,0.78488,2547.5,2547.4,0.78488]
[1748644459746,0.78492,2547.3,2547.2,0.00588685]
[1748644460643,0.78495,2547.2,2547.1,2.80353315]
[1748644460945,0.78495,2547.2,2546.0,0.39568004]
[1748644460946,1.96253,2547.0,2546.7,3.2078]
[1748644461134,0.78507,2546.9,2546.7,3.99289]
[1748644461347,0.78507,2546.8,2546.7,3.99289]
[1748644461639,0.78507,2546.8,2546.7,3.2078]
[1748644462042,0.77571525,2546.8,2546.7,3.2078]
[1748644462939,0.77571525,2546.8,2546.7,3.9929]
[1748644463146,0.78505,2546.9,2546.7,3.99288]
[1748644463348,0.78506,2546.9,2546.7,3.99288]
[1748644463547,0.00588685,2547.0,2546.9,0.78504]
[1748644463951,0.00588685,2547.0,2546.9,7.22784]
[1748644464145,1.96188,2547.9,2547.0,1.96253]
[1748644464342,0.78487,2547.5,2547.2,3.2078]
[1748644464647,3.2078,2548.0,2547.5,0.78484]
[1748644464949,5.16959,2548.0,2547.5,0.78484]
[1748644465150,0.78483,2547.6,2547.5,0.78484]
[1748644465448,5.17543352,2548.0,2547.5,0.78484]
[1748644465449,0.00584352,2548.0,2547.9,0.78473]
[1748644466653,0.00584352,2548.0,2547.9,5.78473]
[1748644467446,0.00584352,2548.0,2547.9,7.09743]
[1748644469251,0.00584352,2548.0,2547.9,10.30523]
[1748644469448,0.79054352,2548.0,2547.9,9.5205]
[1748644469951,0.00584352,2548.0,2547.9,10.30523]
[1748644470946,0.79054352,2548.0,2547.9,3.2078]
[1748644472050,0.79054352,2548.0,2547.9,4.5438]
[1748644472445,0.00584352,2548.0,2547.9,2.12073]
[1748644472651,1.3896,2548.6,2548.4,0.78455]
[1748644472839,0.78455,2548.6,2548.5,1.336]
[1748644473041,3.2078,2548.9,2548.6,0.7845]
[1748644473347,0.78446,2548.8,2548.7,1.336]
[1748644477351,0.78452,2548.6,2548.5,0.00588685]
[1748644477552,3.99232,2548.6,2548.5,0.00588685]
[1748644478057,3.99232,2548.6,2548.5,4.333e-05]
[1748644478349,8.99232,2548.6,2548.5,4.333e-05]
[1748644479148,3.99232,2548.6,2548.5,4.333e-05]
[1748644479345,8.82632,2548.6,2548.5,4.333e-05]
[1748644479952,13.82632,2548.6,2548.5,4.333e-05]
[1748644481958,3.99232,2548.6,2548.5,4.333e-05]
[1748644483554,8.99232,2548.6,2548.5,4.333e-05]
[1748644484154,3.99232,2548.6,2548.5,4.333e-05]
[1748644484357,8.69432,2548.6,2548.5,4.333e-05]
[1748644486457,3.99232,2548.6,2548.5,4.333e-05]
[1748644486760,8.69432,2548.6,2548.5,4.333e-05]
[1748644488458,3.99232,2548.6,2548.5,4.333e-05]
[1748644488759,8.69432,2548.6,2548.5,4.333e-05]
[1748644488960,3.99232,2548.6,2548.5,4.333e-05]
[1748644489352,0.00584352,2548.8,2548.5,5.78459333]
[1748644489558,0.78449,2548.7,2548.6,1.3918]
[1748644496260,0.78449,2548.7,2548.6,2.17632]
[1748644496763,0.78449,2548.7,2548.6,1.3918]
[1748644496968,0.00584352,2548.8,2548.7,0.78449]
[1748644497264,0.00584352,2548.8,2548.7,3.60379]
[1748644497463,0.00584352,2548.8,2548.7,8.60379]
[1748644497668,0.78446,2548.9,2548.8,0.78443]
[1748644497864,0.78446,2548.9,2548.8,2.23573]
[1748644498166,0.78443,2548.9,2548.8,7.23574]
[1748644498367,0.78443,2549.0,2548.9,0.78438]
[1748644499871,1.9608,2549.3,2548.8,1.4513]
[1748644500168,0.78443,2549.0,2548.9,0.78439]
[1748644500465,0.78443,2549.0,2548.9,0.78441]
[1748644500663,3.2078,2549.2,2548.6,3.2078]
[1748644500867,0.78452,2548.6,2548.5,4.333e-05]
[1748644501062,8.69332,2548.6,2548.5,4.333e-05]
[1748644501762,13.69332,2548.6,2548.5,4.333e-05]
[1748644502970,8.69332,2548.6,2548.5,4.333e-05]
[1748644504161,0.78452,2548.6,2548.5,4.333e-05]
[1748644505270,0.7845,2548.7,2548.5,4.333e-05]
[1748644505468,0.7844,2549.0,2548.5,4.333e-05]
[1748644505665,47.4638,2549.4,2548.9,0.78441]
[1748644505966,0.78444,2548.9,2548.7,0.78448]
[1748644506166,0.78444,2548.9,2548.8,1.3844]
[1748644508766,0.78452,2548.6,2548.5,4.333e-05]
[1748644509876,3.2078,2549.0,2548.5,4.333e-05]
[1748644510073,0.78446,2548.8,2548.7,0.78447]
[1748644510270,0.78449,2548.7,2548.6,0.7845]
[1748644510468,5.1688,2549.0,2548.5,4.333e-05]
[1748644510775,0.78449,2548.7,2548.6,0.78452]
[1748644511277,0.78448,2548.8,2548.7,0.78446]
[1748644511475,0.78448,2548.8,2548.7,2.24956]
[1748644511776,0.78448,2548.8,2548.7,1.4651]
[1748644511981,0.78448,2548.8,2548.7,2.24959]
[1748644512276,0.78448,2548.8,2548.7,1.4651]
[1748644512470,0.78448,2548.8,2548.7,2.24959]
[1748644512979,0.78448,2548.8,2548.7,1.4651]
[1748644513180,0.78452,2548.6,2548.5,4.333e-05]
[1748644513870,2.12652,2548.6,2548.5,4.333e-05]
[1748644514471,0.78452,2548.6,2548.5,4.333e-05]
[1748644516778,0.78452,2548.6,2548.5,0.78459333]
[1748644517172,0.78452,2548.6,2548.5,4.333e-05]
[1748644517680,0.78452,2548.6,2548.5,0.78459333]
[1748644517979,0.78452,2548.6,2548.5,4.333e-05]
[1748644519583,5.16857,2549.3,2548.6,1.9613]
[1748644519780,0.78448,2548.8,2548.7,0.78446]
[1748644519982,0.78444,2548.9,2548.8,0.78442]
[1748644520683,0.78447,2548.9,2548.8,0.78445]
[1748644521385,0.78447,2548.9,2548.7,1.4071]
[1748644521386,0.78441,2549.0,2548.9,0.78439]
[1748644521582,3.2078,2549.6,2549.2,0.78429]
[1748644521784,0.78427,2549.4,2549.3,3.51698]
[1748644522181,3.2078,2549.6,2549.3,2.7327]
[1748644522485,0.79257,2549.5,2549.4,0.78426]
[1748644522783,0.79254,2549.5,2549.4,2.19136]
[1748644522986,0.0083,2549.5,2549.4,3.62886]
[1748644523181,3.2078,2549.9,2549.7,0.78415]
[1748644523378,0.78415,2549.9,2549.8,1.3953]
[1748644524685,0.78415,2549.9,2549.8,2.17945]
[1748644524879,0.78415,2549.9,2549.8,1.3953]
[1748644525085,0.78412,2549.9,2549.8,1.3953]
[1748644525278,0.78411,2550.0,2549.9,0.78411]
[1748644525681,0.78415,2549.8,2549.7,0.79004685]
[1748644525989,0.78413,2549.9,2549.7,0.00588685]
[1748644526181,0.78413,2549.9,2549.7,0.79004685]
[1748644526483,4.5875,2550.4,2549.7,0.79004685]
[1748644526484,1.3487,2550.3,2549.7,0.00588685]
[1748644526694,3.2078,2550.4,2549.9,1.9603]
[1748644526877,0.78401,2550.3,2550.2,0.784]
[1748644527187,0.78415,2549.8,2549.7,3.21368685]
[1748644527390,3.99195,2549.8,2549.7,0.00588685]
[1748644527579,1.3593,2550.3,2549.7,0.00588685]
[1748644527783,0.78394,2550.5,2550.1,1.96013]
[1748644528093,3.2078,2550.8,2550.5,0.7839]
[1748644528297,0.78388,2550.7,2550.6,0.78387]
[1748644528594,3.99167,2550.8,2550.4,3.2078]
[1748644528897,0.7839,2550.7,2550.6,0.78389]
[1748644529201,0.78389,2550.7,2550.6,0.78389]
[1748644529494,0.78388,2550.7,2550.6,0.78389]
[1748644529995,0.78391,2550.6,2550.5,0.78391]
[1748644530393,0.78393,2550.5,2550.4,3.2078]
[1748644530696,0.78394,2550.5,2550.4,0.78394]
[1748644530999,0.78391,2550.6,2550.5,0.78393]
[1748644531191,3.2078,2550.8,2550.3,6.1301]
[1748644531388,0.78389,2550.7,2550.6,0.78387]
[1748644531593,3.99166,2550.8,2550.7,0.78387]
[1748644531793,0.78384,2550.8,2550.7,0.78387]
[1748644531998,0.78386,2550.8,2550.7,0.78385]
[1748644532297,5.16722,2551.1,2550.6,0.78387]
[1748644532298,0.78388,2550.7,2550.6,0.78387]
[1748644532695,0.78386,2550.8,2550.7,0.78386]
[1748644533095,0.7839,2550.7,2550.6,0.78389]
[1748644533498,0.78386,2550.8,2550.7,0.78385]
[1748644533796,0.7839,2550.7,2550.6,0.78388]
[1748644534403,0.78386,2550.8,2550.7,0.78383]
[1748644534697,0.78391,2550.7,2550.6,0.7839]
[1748644535101,0.78386,2550.8,2550.7,0.78384]
[1748644535999,5.16721,2551.1,2551.0,0.78378]
[1748644536000,3.99156,2551.1,2551.0,0.78378]
[1748644536196,3.2078,2551.7,2551.1,1.95936]
[1748644536505,0.78371,2551.3,2551.2,0.78368]
[1748644537196,0.78371,2551.3,2551.2,0.78369]
[1748644537588,0.78372,2551.2,2551.1,0.00588685]
[1748644539392,0.78372,2551.2,2551.1,0.78963685]
[1748644539598,0.78372,2551.2,2551.1,0.00588685]